{"text_format":"1","workbook":"xlsx","n_sheets":2,"sheets":["Sheet1","Mentha suaveolens tom 2021"],"not_rendered":{"charts":0,"images":0,"macros":0,"external_links":0,"defined_names":0,"comments":0,"pivot_tables":0},"unopened":[],"bounds":{"document_bytes":16777216,"sheet_cells":100000,"rows_first":2000,"rows_last":500,"rows_between":2000,"halvings":0,"cell_chars":16384,"cell_head_chars":4096},"cells_cut":0,"cells_raw":0,"read":"whole","date_system":"1900"}

{"sheet":"Sheet1","index":0,"n_rows":32,"n_cols":76,"rows_kept":32,"cut":false,"hidden":false,"merged":[]}
["CC","F3Nr","Ny","Ny2","Ny2Sub","N","Institusj","CatNr","Type","AntId","Med","Kat","AdbNr","RevNavn (Gyldig_ADB)","AktueltNavn","IdentificationPrecision","HoPr","Korr","Forkastet","Årsak","XY_2km","PrKl","Fy22","Ko22","Fy","Fy#","KoNr","Kommune","Samkopiert lokalitet \\ økologi / kvantitet","YYYY","MM","DD","Collector","IdentifiedBy",null,"ScientificName","ScientificNameAuthor","X33","Y33","X2km_33","Y2km_33","CoorPrec","KoTreff","Datasett_Kode","merk","URL","AdbNr","DørStA","Kateg fra FAB3","Inkl","Kategori fra ArtsKart","Geometri","OccurenceId","Nodeid","Institusjonskode","Samlingskode","Bildedokumentasjon","Endringsdato","K22","Årsak","Finn","OvfNr","RENr","Id","Utvalg","Hb_id","Sjekkes","verbatimCoordinates","verbatimSRS","ArtObsID","identificationQualifier","DecimalLatitude","DecimalLongitude","Dyntaxa ID","CoordinateValue","Nr"]
[399627,305776,null,null,null,"A","O","422077",{"$f":"HYPERLINK(AT2,\"Hb\")","v":"Hb"},null,1,"4A",102339,"Mentha suaveolens","Mentha suaveolens",null,null,null,null,null,"267_6571",1,"Viken","Fredrikstad","Øf",1,106,"Fredrikstad","Kragerøen v. Fredrikstad, paa Ballast",1891,10,12,"A. Landmark","Reidar Elven",null,"Mentha suaveolens","Ehrh.",266789,6570528,267000,6571000,673,null,8,"GS","https://www.unimus.no/felles/bilder/web_hent_bilde.php?id=13662522&type=jpeg",102339,null,"AlienSpecie",1,"Lav risiko (LO)","POINT (266789 6570528)","urn:catalog:O:V:422077",8,"Naturhistorisk Museum - UiO","v",1,"2012-04-27","ArtKart",null,3,478683,154798,"8_422077",null,"O_422077",null,null,null,null,null,null,null,null,null,399627]
[399628,305777,null,null,null,"A","O","422078",{"$f":"HYPERLINK(AT3,\"Hb\")","v":"Hb"},null,1,"4A",102339,"Mentha suaveolens","Mentha suaveolens",null,null,null,null,null,"267_6571",1,"Viken","Fredrikstad","Øf",1,106,"Fredrikstad","Kragerøen v. Fredrikstad, paa Ballast",1892,7,22,"A. Landmark","Reidar Elven",null,"Mentha suaveolens","Ehrh.",266789,6570528,267000,6571000,673,null,8,"GS","https://www.unimus.no/felles/bilder/web_hent_bilde.php?id=13662522&type=jpeg",102339,null,"AlienSpecie",1,"Lav risiko (LO)","POINT (266789 6570528)","urn:catalog:O:V:422078",8,"Naturhistorisk Museum - UiO","v",1,"2012-04-27","ArtKart",null,3,478684,154799,"8_422078",null,"O_422078",null,null,null,null,null,null,null,null,null,399628]
[393196,null,1,1,1,"A","NBF","21082129","Obs",null,1,"4A",102339,"Mentha suaveolens","Mentha suaveolens",null,null,null,null,null,"265_6611",1,"Viken","Indre Østfold","Øf",1,138,"Hobøl","småbruket NV for Saksebøl, Hobøl i Østfold, Indre Østfold, Vi \\i gammel hage",2010,8,5,"Kåre Arnstein Lye",null,null,"Mentha suaveolens","Ehrh.",265579,6611198,265000,6611000,30,null,1010,null,"https://www.artsobservasjoner.no/Sighting/21082129",102339,null,"AlienSpecie",1,"Lav risiko (LO)","POINT (265579 6611198)","urn:uuid:d842e643-fdc8-4867-af0d-f6ff4bbe8184",1010,"Norsk botanisk forening","so2-vascular",null,"2019-09-05T13:07:00","ArtKart",null,6,193268,null,"1010_21082129",null,null,null,null,null,null,null,null,null,null,null,393196]
[360811,null,1,1,1,"A","NBF","25590853","Obs",null,1,"4A",102339,"Mentha suaveolens","Mentha suaveolens",null,null,null,"Ex","Cult","261_6655",1,"Oslo","Oslo","OA",2,301,"Oslo","Gaustadveien borettslag, Oslo, Os \\NA T42 Blomsterbed og liknende NA T42",2020,6,19,"Kamilla Svingen",null,null,"Mentha suaveolens","Ehrh.",261088,6654100,261000,6655000,5,null,1010,null,"https://www.artsobservasjoner.no/Sighting/25590853",102339,null,"AlienSpecie",1,"Lav risiko (LO)","POINT (261088 6654100)","urn:uuid:224e13c0-8c05-4463-97a9-60f9fcab7640",1010,"Norsk botanisk forening","so2-vascular",null,"2020-11-17T13:08:11","ArtKart",null,6,257431,null,"1010_25590853",null,null,null,null,null,null,null,null,null,null,null,360811]
[364706,279987,null,null,null,"A","O","245017",{"$f":"HYPERLINK(AT6,\"Hb\")","v":"Hb"},null,1,"4A",102339,"Mentha suaveolens","Mentha suaveolens",null,null,null,null,null,"261_6657",3,"Oslo","Oslo","OA",2,301,"Oslo","Kristiania \\paa Ballast",1882,9,1,"Peter Nøvik","Reidar Elven",null,"Mentha suaveolens","Ehrh.",261317,6656077,261000,6657000,20057,null,8,null,"https://www.unimus.no/felles/bilder/web_hent_bilde.php?id=13724778&type=jpeg",102339,null,"AlienSpecie",1,"Lav risiko (LO)","POINT (261317 6656077)","urn:catalog:O:V:245017",8,"Naturhistorisk Museum - UiO","v",1,"2012-07-05","ArtKart",null,3,452859,154802,"8_245017",null,"O_245017",null,null,null,null,null,null,null,null,null,364706]
[364707,279988,null,null,null,"A","O","245018",{"$f":"HYPERLINK(AT7,\"Hb\")","v":"Hb"},null,1,"4A",102339,"Mentha suaveolens","Mentha suaveolens",null,null,null,null,null,"261_6657",3,"Oslo","Oslo","OA",2,301,"Oslo","Oslo.",1882,9,5,"(Statsgartner) P. Nøvik","Reidar Elven",null,"Mentha suaveolens","Ehrh.",261317,6656077,261000,6657000,20057,null,8,null,"https://www.unimus.no/felles/bilder/web_hent_bilde.php?id=13724781&type=jpeg",102339,null,"AlienSpecie",1,"Lav risiko (LO)","POINT (261317 6656077)","urn:catalog:O:V:245018",8,"Naturhistorisk Museum - UiO","v",1,"2021-03-02","ArtKart",null,3,452860,154801,"8_245018",null,"O_245018",null,null,null,null,null,null,null,null,null,364707]
[458771,61942,null,null,null,"A","NBF","11927198",{"$f":"HYPERLINK(AT8,\"Foto\")","v":"Foto"},null,1,"4A",102339,"Mentha suaveolens","Mentha suaveolens",null,null,null,null,null,"289_6737",1,"Innlandet","Stange","He",4,417,"Stange","Alm Østre, Stange, In \\Gårdstun",2012,9,23,"Per Vetlesen",null,null,"Mentha suaveolens","Ehrh.",289483,6736067,289000,6737000,25,null,1010,"http://www.bio.no/enbiolog/topic.asp?whichpage=1&TOPIC_ID=34537126418 .","https://www.artsobservasjoner.no/Sighting/11927198",102339,null,"AlienSpecie",1,"Lav risiko (LO)","POINT (289483 6736067)","urn:uuid:ce907267-f14b-45d3-97e0-d07796e8901e",1010,"Norsk botanisk forening","so2-vascular",1,"2019-09-01T21:41:00","ArtKart",null,6,58117,154803,"1010_11927198",null,null,null,null,null,null,null,null,null,null,null,458771]
[218003,null,1,1,1,"A","O","598980","Hb",null,1,"4A",102339,"Mentha suaveolens","Mentha suaveolens",null,null,null,null,null,"221_6635",1,"Viken","Drammen","Bu",6,625,"Nedre Eiker","Nedre Eiker. Krokstadelva: Rundtom \\skrotemark ved vei",2020,8,10,"Reidar Elven","Reidar Elven",null,"Mentha suaveolens","Ehrh.",220917,6634682,221000,6635000,7,null,8,"OR",null,102339,null,"AlienSpecie",1,"Lav risiko (LO)","POINT (220917 6634682)","urn:catalog:O:V:598980",8,"Naturhistorisk Museum - UiO","v",null,"2021-05-20","ArtKart",null,3,494059,null,"8_598980",null,"O_598980",null,null,null,null,null,null,null,null,null,218003]
[239147,null,1,1,1,"A","O","187712","Hb",null,1,"4A",102339,"Mentha suaveolens","Mentha suaveolens",null,null,null,"Ex","Tax","233_6635",1,"Viken","Lier","Bu",6,626,"Lier","Lier: Grette, SØ for Grettedammen. \\Dumpeplass for gartneriavfall. Kraftig klon på...",2014,10,25,"Tore Berg","Tore Berg",null,"Mentha suaveolens","Ehrh.",232812,6635741,233000,6635000,1,null,8,"OR",null,102339,null,"AlienSpecie",1,"Lav risiko (LO)","POINT (232812 6635741)","urn:catalog:O:V:187712",8,"Naturhistorisk Museum - UiO","v",null,"2017-09-06","ArtKart",null,3,446560,null,"8_187712",null,"O_187712",null,null,null,null,null,null,null,null,null,239147]
[238924,null,1,1,2,"A","NBF","25409612",{"$f":"HYPERLINK(AT11,\"Foto\")","v":"Foto"},null,1,"4A",102339,"Mentha suaveolens","Mentha suaveolens",null,null,null,"Ex","Tax","233_6635",1,"Viken","Lier","Bu",6,626,"Lier","Grette, Lier, Vi",2020,9,5,"Ole Bjørn Braathen|Tore Berg","Berg, Tore",null,"Mentha suaveolens","Ehrh.",232757,6635697,233000,6635000,50,null,1010,"Jord/komposthauger.","https://www.artsobservasjoner.no/Sighting/25409612",102339,null,"AlienSpecie",1,"Lav risiko (LO)","POINT (232757 6635697)","urn:uuid:2124651c-899f-469f-8e9e-c4e98887bead",1010,"Norsk botanisk forening","so2-vascular",1,"2020-10-19T19:52:03","ArtKart",null,6,253758,null,"1010_25409612",null,null,null,null,null,null,null,null,null,null,null,238924]
[538185,343197,null,null,null,"M","O",575525,{"$f":"HYPERLINK(AT12,\"Hb\")","v":"Hb"},null,1,"4A",102339,"Mentha suaveolens","Mentha suaveolens",null,null,null,"Ex","Div",null,null,"Vestfold og Telemark","Tønsberg","Vf",7,704,"Tønsberg","Sem: Garden Laane",null,null,null,"M. Christensen","H. Solstad, R. Elven",null,"Mentha suaveolens","Ehrh.",null,null,null,null,null,null,"V",null,"https://www.unimus.no/felles/bilder/web_hent_bilde.php?id=13629022&type=jpeg",102339,null,"Fr-etab",null,null,null,null,null,null,"V",1,"2017-10-04","MusIt",null,3,6622,null,"O_575525",null,"O_575525",null,null,null,null,null,null,null,null,null,538185]
[185511,201924,null,null,null,"A","KMN","71102","Hb",null,1,"4A",102339,"Mentha suaveolens","Mentha suaveolens",null,null,null,null,null,"177_6539",2,"Vestfold og Telemark","Kragerø","Te",8,815,"Kragerø","Kragerø",2003,8,24,"Bernt Kåre Knutsen","Bernt Kåre Knutsen",null,"Mentha suaveolens","Ehrh.",177261,6539453,177000,6539000,2828,null,33,null,null,102339,null,"AlienSpecie",1,"Lav risiko (LO)","POINT (177261 6539453)","urn:catalog:KMN:V:71102",33,"Agder naturmuseum","v",null,"2014-02-19","ArtKart",null,4,352524,154807,"33_71102",null,"KMN_71102",null,null,null,null,null,null,null,null,null,185511]
[151870,61960,null,null,null,"A","NBF","11929644",{"$f":"HYPERLINK(AT14,\"Foto\")","v":"Foto"},null,1,"4A",102339,"Mentha suaveolens","Mentha suaveolens",null,null,null,"Ex","Tax","125_6487",1,"Agder","Grimstad","AA",9,904,"Grimstad","Dømmesmoen, Grimstad, Ag \\Parkområde",2012,10,26,"Tove Hafnor Dahl","Det. Kåre Homble",null,"Mentha suaveolens","Ehrh.",124530,6486160,125000,6487000,5,null,1010,"Det. Kåre Homble.","https://www.artsobservasjoner.no/Sighting/11929644",102339,null,"AlienSpecie",1,"Lav risiko (LO)","POINT (124530 6486160)","urn:uuid:cfcdf5da-efb9-4cb9-9df5-76ecce366aff",1010,"Norsk botanisk forening","so2-vascular",1,"2019-08-30T08:45:00","ArtKart",null,6,58135,154809,"1010_11929644",null,null,null,null,null,null,null,null,null,null,null,151870]
[161745,null,1,1,1,"A","KMN","79111","Hb",null,1,"4A",102339,"Mentha suaveolens","Mentha suaveolens",null,null,null,"Ex","Cult","137_6495",1,"Agder","Arendal","AA",9,906,"Arendal","Sandvikodden fyrstasjon \\I fyrhagen nær trapp ned til det nye fyret",2018,9,10,"Per Arvid Åsen","Per Arvid Åsen",null,"Mentha suaveolens","Ehrh.",137310,6494079,137000,6495000,1,null,33,null,null,102339,null,"AlienSpecie",1,"Lav risiko (LO)","POINT (137310 6494079)","urn:catalog:KMN:V:79111",33,"Agder naturmuseum","v",null,"2018-11-23","ArtKart",null,4,354216,null,"33_79111",null,"KMN_79111",null,null,null,null,null,null,null,null,null,161745]
[144376,192686,null,null,null,"A","KMN","41727","Hb",null,1,"4A",102339,"Mentha suaveolens","Mentha suaveolens","1",null,null,"Ex","Cult","107_6469",1,"Agder","Lillesand","AA",9,926,"Lillesand","SV på Åkerøya // Vindis hage (dyrket)",2000,9,4,"Asbjørn Lie","Hanne Hegre, Reidar Elven",null,"Mentha suaveolens","Ehrh.",106793,6468489,107000,6469000,71,null,33,null,null,102339,null,"AlienSpecie",1,"Lav risiko (LO)","POINT (106793 6468489)","urn:catalog:KMN:V:41727",33,"Agder naturmuseum","v",null,"2020-01-27","ArtKart",null,4,344070,154676,"33_41727",null,"KMN_41727",null,null,null,null,null,null,null,null,null,144376]
[122515,null,1,1,1,"A","NBF","22238162",{"$f":"HYPERLINK(AT17,\"Foto\")","v":"Foto"},null,1,"4A",102339,"Mentha suaveolens","Mentha suaveolens",null,null,null,null,null,"83_6463",1,"Agder","Kristiansand","VA",10,1001,"Kristiansand","Kovigdalen, Kristiansand, Ag \\ /[Kvant.:] 9 Plants",2019,7,19,"Hans Vidar Løkken|Torhild Omestad|Roy Erling Wrånes",null,null,"Mentha suaveolens","Ehrh.",83335,6462119,83000,6463000,10,null,1010,"Quantity: 9 Plants","https://www.artsobservasjoner.no/Sighting/22238162",102339,null,"AlienSpecie",1,"Lav risiko (LO)","POINT (83335 6462119)","urn:uuid:478f6d0a-fcb2-48f8-8177-c77e01eb4b21",1010,"Norsk botanisk forening","so2-vascular",1,"2020-01-05T19:25:34","ArtKart",null,6,209429,null,"1010_22238162",null,null,null,null,null,null,null,null,null,null,null,122515]
[122571,null,1,1,2,"A","NBF","25133303","Foto",null,1,"4A",102339,"Mentha suaveolens","Mentha suaveolens",null,null,null,null,null,"83_6463",1,"Agder","Kristiansand","VA",10,1001,"Kristiansand","Kovigdalen, Kristiansand, Ag \\ /[Kvant.:] 2 m2",2020,9,6,"Hans Vidar Løkken",null,null,"Mentha suaveolens","Ehrh.",83335,6462119,83000,6463000,10,null,1010,"Helt vest i deponiet.. Quantity: 2 m2","https://www.artsobservasjoner.no/Sighting/25133303",102339,null,"AlienSpecie",1,"Lav risiko (LO)","POINT (83335 6462119)","urn:uuid:5aa371f1-31e1-4578-9d22-96e9f6d3ea71",1010,"Norsk botanisk forening","so2-vascular",1,"2020-09-06T23:05:53","ArtKart",null,6,249549,null,"1010_25133303",null,null,null,null,null,null,null,null,null,null,null,122571]
[133337,null,1,1,1,"A","NBF","21476916","Foto",null,1,"4A",102339,"Mentha suaveolens","Mentha suaveolens",null,null,null,null,null,"89_6467",1,"Agder","Kristiansand","VA",10,1001,"Kristiansand","Oddernes skole, Oddernes kirke, Kristiansand, Ag \\ /[Kvant.:] 1 Plants",2018,8,11,"Hans Vidar Løkken|Torhild Omestad",null,null,"Mentha suaveolens","Ehrh.",89473,6467788,89000,6467000,10,null,1010,"Forvillet.. Quantity: 1 Plants","https://www.artsobservasjoner.no/Sighting/21476916",102339,null,"AlienSpecie",1,"Lav risiko (LO)","POINT (89473 6467788)","urn:uuid:06f66869-e19f-493b-a0c5-81957d8ceb57",1010,"Norsk botanisk forening","so2-vascular",1,"2019-04-22T01:00:33","ArtKart",null,6,196355,null,"1010_21476916",null,null,null,null,null,null,null,null,null,null,null,133337]
[133301,null,1,1,1,"A","NBF","22561281","Foto",null,1,"4A",102339,"Mentha suaveolens","Mentha suaveolens",null,null,null,null,null,"89_6471",1,"Agder","Kristiansand","VA",10,1001,"Kristiansand","Gill gård, Gill, Kristiansand, Ag \\ /[Kvant.:] 2 m2",2019,8,23,"Hans Vidar Løkken",null,null,"Mentha suaveolens","Ehrh.",89418,6470712,89000,6471000,500,null,1010,"Under kraftlinja like nord for gården.. Quantity: 2 m2","https://www.artsobservasjoner.no/Sighting/22561281",102339,null,"AlienSpecie",1,"Lav risiko (LO)","POINT (89418 6470712)","urn:uuid:aa3e1ac3-d7f3-4437-b6d2-8bbd89d76454",1010,"Norsk botanisk forening","so2-vascular",1,"2019-08-25T01:02:36","ArtKart",null,6,215617,null,"1010_22561281",null,null,null,null,null,null,null,null,null,null,null,133301]
[133303,null,1,1,2,"A","NBF","24061729","Foto",null,1,"4A",102339,"Mentha suaveolens","Mentha suaveolens",null,null,null,null,null,"89_6471",1,"Agder","Kristiansand","VA",10,1001,"Kristiansand","Gill gård, Gill, Kristiansand, Ag \\ /[Kvant.:] 2 m2",2020,5,5,"Hans Vidar Løkken",null,null,"Mentha suaveolens","Ehrh.",89418,6470712,89000,6471000,500,null,1010,"På utkast under kraftlinja.. Quantity: 2 m2","https://www.artsobservasjoner.no/Sighting/24061729",102339,null,"AlienSpecie",1,"Lav risiko (LO)","POINT (89418 6470712)","urn:uuid:0c71bce7-7b98-4186-bfd8-ea2d641f9777",1010,"Norsk botanisk forening","so2-vascular",1,"2020-05-06T00:38:54","ArtKart",null,6,235076,null,"1010_24061729",null,null,null,null,null,null,null,null,null,null,null,133303]
[137277,null,1,1,1,"A","NBF","25496154","Foto",null,1,"4A",102339,"Mentha suaveolens","Mentha suaveolens",null,null,null,null,null,"93_6467",1,"Agder","Kristiansand","VA",10,1001,"Kristiansand","Håneskrysset, Øvre Strømme, Kristiansand, Ag \\ /[Kvant.:] 3 Plants",2020,11,1,"Hans Vidar Løkken",null,null,"Mentha suaveolens","Ehrh.",93917,6467965,93000,6467000,25,null,1010,"Quantity: 3 Plants","https://www.artsobservasjoner.no/Sighting/25496154",102339,null,"AlienSpecie",1,"Lav risiko (LO)","POINT (93917 6467965)","urn:uuid:213a1e92-8901-467e-80cb-6159670f7ef7",1010,"Norsk botanisk forening","so2-vascular",1,"2020-11-01T22:50:29","ArtKart",null,6,255081,null,"1010_25496154",null,null,null,null,null,null,null,null,null,null,null,137277]
[70083,null,1,1,1,"A","O","urn:uuid:bf246588-7289-4814-8838-c14a5a1b5074","Obs",null,1,"4A",102339,"Mentha suaveolens","Mentha suaveolens",null,null,null,null,null,"9_6475",1,"Agder","Farsund","VA",10,1003,"Farsund","Jørstad",2016,1,1,"Høiland, Klaus [foto]?",null,null,"Mentha suaveolens","Ehrh.",8812,6474126,9000,6475000,1000,null,266,null,null,102339,null,"AlienSpecie",1,"Lav risiko (LO)","POINT (8812 6474126)","urn:uuid:bf246588-7289-4814-8838-c14a5a1b5074",266,"Naturhistorisk Museum - UiO","o",null,"2020-05-27","ArtKart",null,5,331685,null,"266_urn:uuid:bf246588-7289-4814-8838-c14a5a1b5074",null,null,null,null,null,null,null,null,null,null,null,70083]
[120773,null,1,1,1,"A","NBF","22479246",{"$f":"HYPERLINK(AT24,\"Foto\")","v":"Foto"},null,1,"4A",102339,"Mentha suaveolens","Mentha suaveolens",null,null,null,null,null,"81_6465",1,"Agder","Kristiansand","VA",10,1017,"Songdalen","Frustøl massedeponi, Mjåvatn, Songdalen, Kristiansand, Ag \\ /[Kvant.:] 10 m2",2019,8,11,"Hans Vidar Løkken",null,null,"Mentha suaveolens","Ehrh.",80236,6465962,81000,6465000,75,null,1010,"Stor forekomst nord for vedlagringsplassen.. Quantity: 10 m2","https://www.artsobservasjoner.no/Sighting/22479246",102339,null,"AlienSpecie",1,"Lav risiko (LO)","POINT (80236 6465962)","urn:uuid:165bdba3-54b2-4909-9100-ec1562df275b",1010,"Norsk botanisk forening","so2-vascular",1,"2019-08-11T21:20:19","ArtKart",null,6,213931,null,"1010_22479246",null,null,null,null,null,null,null,null,null,null,null,120773]
[120793,null,1,1,2,"A","NBF","24117483",{"$f":"HYPERLINK(AT25,\"Foto\")","v":"Foto"},null,1,"4A",102339,"Mentha suaveolens","Mentha suaveolens",null,null,null,null,null,"81_6465",1,"Agder","Kristiansand","VA",10,1017,"Songdalen","Frustøl massedeponi, Mjåvatn, Songdalen, Kristiansand, Ag \\ /[Kvant.:] 5 m2",2020,5,10,"Hans Vidar Løkken",null,null,"Mentha suaveolens","Ehrh.",80236,6465962,81000,6465000,75,null,1010,"Ved vedlagene.. Quantity: 5 m2","https://www.artsobservasjoner.no/Sighting/24117483",102339,null,"AlienSpecie",1,"Lav risiko (LO)","POINT (80236 6465962)","urn:uuid:40efce11-ad82-4c6a-904a-35df26861cd7",1010,"Norsk botanisk forening","so2-vascular",1,"2020-05-10T21:57:10","ArtKart",null,6,235837,null,"1010_24117483",null,null,null,null,null,null,null,null,null,null,null,120793]
[32941,137623,null,null,null,"A","BG","161393","Hb",null,1,"4A",102339,"Mentha suaveolens","Mentha suaveolens",null,null,null,"Ex","Tax","-33_6573",3,"Rogaland","Stavanger","Ro",11,1103,"Stavanger","Krossbergveien, Stvgr. \\Veikant, park.plass",2003,8,6,"Svein Imsland","Svein Imsland",null,"Mentha suaveolens","Ehrh.",-32626,6573815,-33000,6573000,10754,null,105,null,null,102339,null,"AlienSpecie",1,"Lav risiko (LO)","POINT (-32626 6573815)","urn:catalog:BG:S:161393",105,"Universitetsmuseet i Bergen, UiB","s",null,"2014-11-12","ArtKart",null,5,288062,154812,"105_161393",null,"BG_161393",null,null,null,null,null,null,null,null,null,32941]
[20792,314017,null,null,null,"A","O","513508",{"$f":"HYPERLINK(AT27,\"Hb\")","v":"Hb"},null,1,"4A",102339,"Mentha suaveolens","Mentha suaveolens",null,null,null,null,null,"-37_6575",1,"Rogaland","Stavanger","Ro",11,1103,"Stavanger","Sunde, Stavanger kommune. Vegkant/steingard (naturalisert frå hage)",2002,9,6,"John Inge Johnsen","Reidar Elven",null,"Mentha suaveolens","Ehrh.",-37542,6574198,-37000,6575000,707,null,8,"OR","https://www.unimus.no/felles/bilder/web_hent_bilde.php?id=13640625&type=jpeg",102339,null,"AlienSpecie",1,"Lav risiko (LO)","POINT (-37542 6574198)","urn:catalog:O:V:513508",8,"Naturhistorisk Museum - UiO","v",1,"2003-08-25","ArtKart",null,3,485997,154811,"8_513508",null,"O_513508",null,null,null,null,null,null,null,null,null,20792]
[67752,335060,null,null,null,"A","JBJordal","21702","Obs",null,1,"4A",102339,"Mentha suaveolens","Mentha suaveolens",null,null,null,"Ex","Tax","5_6521",1,"Rogaland","Lund","Ro",11,1112,"Lund","Rusdalsvatnet søraust",2011,5,31,"Johnsen, John Inge","Johnsen, John Inge",null,"Mentha suaveolens","Ehrh.",5970,6520777,5000,6521000,30,null,95,null,null,102339,null,"AlienSpecie",1,"Lav risiko (LO)","POINT (5970 6520777)","urn:catalog:JBJordal:FunnBot:21702",95,"JBJordal","funnbot",null,"2012-09-27","ArtKart",null,4,507406,154813,"95_21702",null,null,null,null,null,null,null,null,null,null,null,67752]
[36911,142123,null,null,null,"A","BG","249939",{"$f":"HYPERLINK(AT29,\"Hb\")","v":"Hb"},null,1,"4A",102339,"Mentha suaveolens","Mentha suaveolens","1",null,null,null,null,"-31_6735",1,"Vestland","Bergen","Ho",12,1201,"Bergen","Bg.: Nedre fjellsmug. \\I et hagegjerde.",1988,8,9,"Fægri","R. Elven",null,"Mentha suaveolens","Ehrh.",-31645,6734674,-31000,6735000,50,null,105,null,"https://www.unimus.no/felles/bilder/web_hent_bilde.php?id=12151203&type=jpeg",102339,null,"AlienSpecie",1,"Lav risiko (LO)","POINT (-31645 6734674)","urn:catalog:BG:S:249939",105,"Universitetsmuseet i Bergen, UiB","s",1,"2013-05-28","ArtKart",null,5,293928,154814,"105_249939",null,"BG_249939",null,null,null,null,null,null,null,null,null,36911]
[34601,148396,null,null,null,"A","BG","684","Hb",null,1,"4A",102339,"Mentha suaveolens","Mentha suaveolens",null,null,null,"Ex","Tax","-33_6729",1,"Vestland","Bergen","Ho",12,1201,"Bergen","Fjøsanger. \\På veikant nær Søre Nyhaugåsen.",1989,11,18,"P. M. Jørgensen","P. M. Jørgensen",null,"Mentha suaveolens","Ehrh.",-32297,6729178,-33000,6729000,200,null,105,null,null,102339,null,"AlienSpecie",1,"Lav risiko (LO)","POINT (-32297 6729178)","urn:catalog:BG:S:684",105,"Universitetsmuseet i Bergen, UiB","s",null,"2013-05-28","ArtKart",null,5,298897,154815,"105_684",null,"BG_684",null,null,null,null,null,null,null,null,null,34601]
[53748,null,1,null,null,"A","KMN","78171","Hb",null,1,"4A",102339,"Mentha suaveolens","Mentha suaveolens",null,null,null,null,null,"-23_6919",1,"Vestland","Kinn","SF",14,1439,"Vågsøy","Kråkenes fyrstasjon \\Gjenstående i nytt urtebed (fra ca. 2000) midt ...",2017,6,5,"Per Arvid Åsen, Elisabeth Goksøyr Åsen","Per Arvid Åsen",null,"Mentha suaveolens","Ehrh.",-22314,6918467,-23000,6919000,1,null,33,null,null,102339,null,"AlienSpecie",1,"Lav risiko (LO)","POINT (-22314 6918467)","urn:catalog:KMN:V:78171",33,"Agder naturmuseum","v",null,"2018-02-05","ArtKart",null,4,353944,null,"33_78171",null,"KMN_78171",null,null,null,null,null,null,null,null,null,53748]
[53645,63264,null,null,null,"A","NBF","11955345","Obs",null,1,"4A",102339,"Mentha suaveolens","Mentha suaveolens",null,null,null,null,null,"-23_6919",1,"Vestland","Kinn","SF",14,1439,"Vågsøy","kråkenes fyr, Kinn, Ve",2011,7,25,"Finn Roar Bruun",null,null,"Mentha suaveolens","Ehrh.",-22404,6918479,-23000,6919000,100,null,1010,null,"https://www.artsobservasjoner.no/Sighting/11955345",102339,null,"AlienSpecie",1,"Lav risiko (LO)","POINT (-22404 6918479)","urn:uuid:580e983c-ca7a-4720-9750-841e8bc51c60",1010,"Norsk botanisk forening","so2-vascular",null,"2013-06-20T16:55:00","ArtKart",null,6,59408,154817,"1010_11955345",null,null,null,null,null,null,null,null,null,null,null,53645]

{"sheet":"Mentha suaveolens tom 2021","index":1,"n_rows":18,"n_cols":9,"rows_kept":18,"cut":false,"hidden":false,"merged":[]}
["Institusj","CatNr","RE_Navn","Fy","KoNr","t","zone","east","north"]
["NBF","21082129","Mentha suaveolens","Øf",138,2010,33,265579,6611198]
["O","598980","Mentha suaveolens","Bu",625,2020,{"$f":"G2","v":33},220917,6634682]
["NBF","22238162","Mentha suaveolens","VA",1001,2019,{"$f":"G3","v":33},83335,6462119]
["NBF","25133303","Mentha suaveolens","VA",1001,2020,33,83335,6462119]
["NBF","21476916","Mentha suaveolens","VA",1001,2018,33,89473,6467788]
["NBF","22561281","Mentha suaveolens","VA",1001,2019,33,89418,6470712]
["NBF","24061729","Mentha suaveolens","VA",1001,2020,33,89418,6470712]
["NBF","25496154","Mentha suaveolens","VA",1001,2020,33,93917,6467965]
["O","urn:uuid:bf246588-7289-4814-8838-c14a5a1b5074","Mentha suaveolens","VA",1003,2016,33,8812,6474126]
["NBF","22479246","Mentha suaveolens","VA",1017,2019,33,80236,6465962]
["NBF","24117483","Mentha suaveolens","VA",1017,2020,33,80236,6465962]
["KMN","78171","Mentha suaveolens","SF",1439,2017,33,-22314,6918467]
["NBF","11927198","Mentha suaveolens","He",417,2012,33,289483,6736067]
["KMN","71102","Mentha suaveolens","Te",815,2003,33,177261,6539453]
["O","513508","Mentha suaveolens","Ro",1103,2002,33,-37542,6574198]
["NBF","11955345","Mentha suaveolens","SF",1439,2011,33,-22404,6918479]
["BG","249939","Mentha suaveolens","Ho",1201,1988,33,-31645,6734674]